Cogmind - Beta 15 @@@ ROGUE MODE // 2025.05.19 @ 00:16:36 Player: Ultra Sane Result: Destroyed by S-27 Virus with Autogun Performance ------------- Evolutions (1) 500 Regions Visited (5) 1000 Robots Destroyed (48) 240 Value Destroyed (745) 745 Prototype IDs (0) 0 Alien Tech Used (0) 0 Bonus (729) 729 TOTAL SCORE: 3214 Bonus ------- Follower Combat Kills 129 Met Imprinter 300 Was Imprinted 300 Cogmind --------- Core Integrity 0/400 Matter 158/300 Energy 22/100 System Corruption 0% Temperature Cool (0) Movement Walking (130) Location -6/Proximity Caves Parts ------- > --- POWER (1) -------- (None) > --- PROPULSION (3) --- Titanium Leg Titanium Leg Titanium Leg > --- UTILITY (3) ------ Improved Terrain Scanner Hacking Suite > --- WEAPON (2) ------- (None) > --- INVENTORY (5) ---- Light Nuclear Core Titanium Leg Tractor Beam Beamcaster Peak State ------------ > --- POWER ------------ Ion Engine > --- PROPULSION ------- Titanium Leg Titanium Leg Titanium Leg > --- UTILITY ---------- Improved Sensor Array Improved Terrain Scanner Hacking Suite > --- WEAPON ----------- Heavy Hammer > --- INVENTORY -------- Titanium Leg Tractor Beam Self-destruct Interrupter Self-destruct Interrupter [Rating: 22] Favorites ----------- Power Ion Engine Engine Ion Engine Propulsion Titanium Leg Treads Light Treads Leg Titanium Leg Utility Improved Terrain Scanner Device Improved Terrain Scanner Storage Huge Storage Unit Hackware Hacking Suite Weapon Heavy Hammer Energy Gun EM Pulse Gun Launcher Grenade Launcher Impact Weapon Heavy Hammer Build | -11 -10 -9 -9 -7 -6 ------- Run | Yrd Mat Mat Min Zio Pro Slots Evolved 2 | . . 2 . . . Power . | . . . . . . Propulsion 1 | . . 1 . . . Utility 1 | . . 1 . . . Weapon . | . . . . . . Parts Attached 21 | 7 4 5 2 3 . Power 2 | 1 . . 1 . . Engine 2 | 1 . . 1 . . Core . | . . . . . . Reactor . | . . . . . . Propulsion 6 | 2 . 4 . . . Treads 1 | . . 1 . . . Leg 5 | 2 . 3 . . . Wheel . | . . . . . . Hover . | . . . . . . Flight . | . . . . . . Utility 6 | 1 1 1 1 2 . Device 4 | 1 1 . 1 1 . Storage 1 | . . 1 . . . Processor . | . . . . . . Hackware 1 | . . . . 1 . Protection . | . . . . . . Artifact . | . . . . . . Weapon 7 | 3 3 . . 1 . Energy Gun 3 | 3 . . . . . Energy Cannon . | . . . . . . Ballistic Gun . | . . . . . . Ballistic Cannon . | . . . . . . Launcher 3 | . 3 . . . . Special Weapon . | . . . . . . Impact Weapon 1 | . . . . 1 . Slashing Weapon . | . . . . . . Piercing Weapon . | . . . . . . Special Melee Weapon . | . . . . . . Unidentified Prototypes . | . . . . . . Parts Lost 9 | . . 6 . . 3 Power 2 | . . 1 . . 1 Propulsion 1 | . . 1 . . . Utility 2 | . . 1 . . 1 Weapon 4 | . . 3 . . 1 Highest Loss Streak 2 | . . 2 . . 1 To Critical Strikes 1 | . . . . . 1 Average Backups 2 | 1 4 4 1 1 2 Power . | . 1 1 . . . Propulsion . | . . . 1 1 1 Utility . | . 1 2 . . 1 Weapon . | . 2 . . . . Tool/Special . | . . . . . . Unused Backups 10 | 2 1 1 . 1 5 Power 2 | . 1 . . . 1 Propulsion 3 | 1 . . . . 2 Utility 2 | 1 . . . 1 . Weapon 3 | . . 1 . . 2 Tool/Special . | . . . . . . Average Slot Usage (%) 79 | . 93 58 65 84 73 Engine 11 | . 14 10 10 11 10 Treads 1 | . . 5 . . . Leg 28 | . 28 9 33 33 33 Device 19 | . 22 16 21 21 11 Hackware 6 | . . . . 9 11 Energy Gun 1 | . 7 . . . . Launcher 5 | . 19 14 . . . Impact Weapon 5 | . . . . 9 7 Peak Build Rating 22 | 8 9 10 14 22 21 Average Rating 14 | 5 8 7 13 20 17 On Entrance 10 | . 8 9 9 14 21 Naked Turns . | . . . . . . Heaviest Build 13 | 10 13 13 7 10 10 Greatest Support 51 | 20 20 51 51 51 51 Greatest Overweight (x) 1 | . . 1 . . . Average Overweight (x) . | . . . . . . Largest Inventory Capacity 25 | 5 5 25 5 5 5 Average Capacity 5 | 5 5 5 5 5 5 Most Carried 5 | 5 5 5 4 5 4 Average Carried 3 | 1 4 4 1 3 2 Final Capacity 5 | 5 5 5 5 5 5 Final Carried 5 | 4 5 5 1 2 4 Class Distribution -------------------- 100% | Mutant Dominant Class ---------------- Mutant | -10/Materials Mutant | -9/Materials Mutant | -9/Mines Mutant | -7/Zion Mutant | -6/Proximity Caves Resources | -11 -10 -9 -9 -7 -6 ----------- Run | Yrd Mat Mat Min Zio Pro Matter Collected 829 | 270 272 126 . 95 66 Remotely 355 | . 179 126 . 50 . Salvage Created 920 | 329 345 246 . . . Parts 91 | 29 41 21 . . . Haulers Intercepted . | . . . . . . Recyclers Shooed . | . . . . . . Parts Field Recycled . | . . . . . . Retrieved Matter . | . . . . . . Parts Self-Destructed 4 | . . . . . 4 Prevented 1 | . . . . . 1 Kills | -11 -10 -9 -9 -7 -6 ------- Run | Yrd Mat Mat Min Zio Pro Combat Hostiles Destroyed 18 | . 10 8 . . . AOE 18 | . 10 8 . . . Classes Destroyed 9 | 3 5 1 . . . Worker 12 | 3 7 2 . . . Builder 4 | . 1 3 . . . Tunneler 9 | 9 . . . . . Recycler 2 | 1 1 . . . . Operator 1 | . 1 . . . . Watcher 2 | . 1 1 . . . Swarmer 5 | . 5 . . . . Grunt 11 | . 5 6 . . . Sentry 2 | . . 2 . . . Best Kill Streak 7 | 5 7 6 . . . Combat Bots Only 4 | . 4 4 . . . Max Kills in Single Turn 3 | 1 3 2 . . . Gunslinging . | . . . . . . Exploded 2 | . 2 2 . . . Melee . | . . . . . . Uniques/NPCs Destroyed . | . . . . . . Combat | -11 -10 -9 -9 -7 -6 -------- Run | Yrd Mat Mat Min Zio Pro Hostile Shots Fired 146 | . 28 74 . . 44 Missed 51 | . 9 32 . . 10 Hits 95 | . 19 42 . . 34 Projectile 95 | . 19 42 . . 34 Critical Strikes 5 | . 1 3 . . 1 Damage Taken 1485 | . 228 730 . . 527 Core 427 | . 27 242 . . 158 Absorbed by Shields . | . . . . . . Regen/Repaired (Parts) 107 | . 59 48 . . . Core Remaining (%) 94 | 100 89 . . . . Volleys Fired 95 | 53 22 20 . . . Largest 2 | 2 2 2 . . . Hottest 80 | 80 80 60 . . . Shots Fired 127 | 63 38 26 . . . Gun 72 | 63 9 . . . . Cannon . | . . . . . . Launcher 55 | . 29 26 . . . Special . | . . . . . . Kinetic . | . . . . . . Thermal 52 | 43 9 . . . . Explosive 55 | . 29 26 . . . Electromagnetic 20 | 20 . . . . . Robot Hit Streak 9 | 9 7 8 . . . Robot Miss Streak 3 | 2 3 1 . . . Penetration Max . | . . . . . . Secondary Targets . | . . . . . . Shots Hit Robots 67 | 34 16 16 . . 1 Core Hits 75 | 14 30 31 . . . Critical Kills . | . . . . . . Critical Parts Destroyed . | . . . . . . Critical Strikes 3 | 3 . . . . . Burn 3 | 3 . . . . . Melee Attacks 3 | . . . . . 3 Impact 3 | . . . . . 3 Slashing . | . . . . . . Piercing . | . . . . . . Sneak Attacks . | . . . . . . Combat Hostiles . | . . . . . . Follow-up Attacks . | . . . . . . Damage Inflicted 2705 | 483 1356 833 9 . 24 Guns 522 | 445 77 . . . . Cannons . | . . . . . . Explosions 2144 | 38 1273 833 . . . Melee 24 | . . . . . 24 Ramming 15 | . 6 . 9 . . Kinetic . | . . . . . . Thermal 387 | 310 77 . . . . Explosive 2106 | . 1273 833 . . . Electromagnetic 173 | 173 . . . . . Impact 24 | . . . . . 24 Slashing . | . . . . . . Piercing . | . . . . . . Highest Corruption 1 | . . 1 1 1 . Average Corruption 1 | . . 1 1 1 . Corruption Purged . | . . . . . . Corruption Blocked . | . . . . . . Effects 5 | . . 4 1 . . Message Errors 2 | . . 2 . . . Matter Fused 1 | . . 1 . . . Energy Discharges 1 | . . 1 . . . Data Loss (major) 1 | . . . 1 . . Overload Shots . | . . . . . . Overflow Damage 149 | . 24 125 . . . Projectiles . | . . . . . . Explosions 149 | . 24 125 . . . Melee . | . . . . . . Knockbacks 1 | . . . . . 1 Impact 1 | . . . . . 1 Kinetic . | . . . . . . Secondary . | . . . . . . Self-Inflicted Damage 236 | . 38 198 . . . Shots 9 | . 2 7 . . . Rammed . | . . . . . . Targets Rammed 3 | . 2 . 1 . . Kicked 3 | . 2 . 1 . . Crushed . | . . . . . . Highest Temperature 110 | 110 99 28 . . . Average Temperature 41 | 46 29 7 . . . Received Heat Transfer 360 | . 75 285 . . . Siege Activations . | . . . . . . Martial Activations . | . . . . . . Shielding Activations . | . . . . . . Robots Disrupted . | . . . . . . Combat Hostiles . | . . . . . . Robots Corrupted . | . . . . . . Combat Hostiles . | . . . . . . Parts Fried . | . . . . . . Impact Corruptions . | . . . . . . Robots Melted . | . . . . . . Combat Hostiles . | . . . . . . Parts Melted 2 | 1 1 . . . . Heat Transferred 1308 | 1086 222 . . . . Parts Sabotaged . | . . . . . . Parts Stolen . | . . . . . . Parts Stripped . | . . . . . . Power Chain Reactions 1 | 1 . . . . . Alert | -11 -10 -9 -9 -7 -6 ------- Run | Yrd Mat Mat Min Zio Pro Maximum Alert Level 1 | . 1 1 . . . Low Security (%) 76 | 100 88 43 100 . . Level 1 23 | . 11 56 . . . Level 2 . | . . . . . . Level 3 . | . . . . . . Level 4 . | . . . . . . Level 5 . | . . . . . . High Security . | . . . . . . Max Security . | . . . . . . Peak Influence 314 | 20 277 314 112 . . Initial 117 | . . 117 112 . . Average 119 | 2 114 216 64 . . Influence Increases 1194 | 65 457 509 . . 163 Destroy 0b10 Robot/C 460 | . 200 160 . . 100 Destroy 0b10 Robot/NC 155 | 65 55 30 . . 5 Destroy Leader 124 | . 52 52 . . 20 Allied During Kill 23 | . . . . . 23 Successful Hack 7 | . . 7 . . . Disable Machine 75 | . 15 60 . . . Destroy Structure 305 | . 120 185 . . . Lose Combat Pursuer 45 | . 15 15 . . 15 Influence Decreases 1175 | 65 180 498 276 12 144 Entered New Map 348 | . . 160 176 12 . Time Decay 717 | 65 180 278 100 . 94 Lost Part 70 | . . 60 . . 10 Lost Ally 40 | . . . . . 40 Squads Dispatched 7 | . 2 5 . . . Investigation 2 | . . 2 . . . Extermination . | . . . . . . Reinforcement 5 | . 2 3 . . . Assault . | . . . . . . Garrison . | . . . . . . Intercept . | . . . . . . Searches Triggered . | . . . . . . Construction Impeded 2 | . . 2 . . . Haulers Reinforced . | . . . . . . Active Scanning Responses . | . . . . . . Cargo Convoy Interrupts . | . . . . . . Stealth | -11 -10 -9 -9 -7 -6 --------- Run | Yrd Mat Mat Min Zio Pro Distress Signals 1 | . 1 . . . . Communications Jammed . | . . . . . . Distress Signals . | . . . . . . Times Spotted 47 | . 18 17 3 . 9 Peak Tracking Total 5 | . 5 5 3 . 4 Tactical Retreats 3 | . 1 1 . . 1 Traps | -11 -10 -9 -9 -7 -6 ------- Run | Yrd Mat Mat Min Zio Pro Traps Triggered 1 | . . 1 . . . Indirectly . | . . . . . . Trap Hack Attempts . | . . . . . . Triggered . | . . . . . . Disarmed . | . . . . . . Reprogrammed . | . . . . . . Reused . | . . . . . . Traps Extracted . | . . . . . . Installed . | . . . . . . Triggered . | . . . . . . Machines | -11 -10 -9 -9 -7 -6 ---------- Run | Yrd Mat Mat Min Zio Pro Machines Disabled 5 | . 1 4 . . . Max in Single Turn 2 | . 1 2 . . . Machines Repaired . | . . . . . . Machines Dismantled . | . . . . . . Machines Sabotaged . | . . . . . . Overloaded Fab Kills . | . . . . . . Hacking | -11 -10 -9 -9 -7 -6 --------- Run | Yrd Mat Mat Min Zio Pro Machines Accessed 3 | . 1 2 . . . Terminals 1 | . . 1 . . . Fabricators . | . . . . . . Repair Stations 2 | . 1 1 . . . Recycling Units . | . . . . . . Scanalyzers . | . . . . . . Garrison Access . | . . . . . . Total Hacks 8 | . 2 6 . . . Successful 6 | . 2 4 . . . Failed 2 | . . 2 . . . Catastrophic . | . . . . . . Database Lockouts . | . . . . . . Manual . | . . . . . . Terminals 3 | . . 3 . . . Fabricators . | . . . . . . Repair Stations 5 | . 2 3 . . . Recycling Units . | . . . . . . Scanalyzers . | . . . . . . Garrison Access . | . . . . . . Terminal Hacks 2 | . . 2 . . . Locate Traps 1 | . . 1 . . . Maintenance Status 1 | . . 1 . . . Fabricator Hacks . | . . . . . . Repair Station Hacks 4 | . 2 2 . . . Scan Component 2 | . 1 1 . . . Repair 2 | . 1 1 . . . Recycling Unit Hacks . | . . . . . . Scanalyzer . | . . . . . . Garrison Access Hacks . | . . . . . . Unauthorized Hacks . | . . . . . . Terminals . | . . . . . . Fabricators . | . . . . . . Repair Stations . | . . . . . . Recycling Units . | . . . . . . Scanalyzers . | . . . . . . Garrison Access . | . . . . . . Data Cores Recovered . | . . . . . . Used . | . . . . . . Hacking Detections 2 | . . 2 . . . Full Trace Events 2 | . . 2 . . . Feedback Events . | . . . . . . Feedback Blocked . | . . . . . . Robot Schematics Acquired . | . . . . . . Robots Built . | . . . . . . Authchips . | . . . . . . Time . | . . . . . . Total Robot Build Rating . | . . . . . . Part Schematics Acquired . | . . . . . . Parts Built . | . . . . . . Authchips . | . . . . . . Time . | . . . . . . Total Part Build Rating . | . . . . . . Parts Repaired 2 | . 1 1 . . . Time 52 | . 26 26 . . . Parts Recycled . | . . . . . . Recycled Matter . | . . . . . . Retrieved Matter . | . . . . . . Retrieved Components . | . . . . . . Parts Scanalyzed . | . . . . . . Part Schematics Acquired . | . . . . . . Parts Damaged . | . . . . . . Bothacking | -11 -10 -9 -9 -7 -6 ------------ Run | Yrd Mat Mat Min Zio Pro Used RIF Installer . | . . . . . . Robots Hacked . | . . . . . . Non-combat . | . . . . . . Combat . | . . . . . . Robot Hacks Applied . | . . . . . . Relay Couplers Released . | . . . . . . Fabnet Peak Effective % . | . . . . . . Robots Rewired . | . . . . . . Allies Hacked . | . . . . . . Hacks Repelled . | . . . . . . Allies | -11 -10 -9 -9 -7 -6 -------- Run | Yrd Mat Mat Min Zio Pro Total Allies 6 | . . . . 6 . Largest Group 6 | . . . . 6 3 Highest-Rated Group 218 | . . . . 218 100 Highest-Rated Ally 41 | . . . . 41 38 Total Orders . | . . . . . . Ally Attacks 24 | . . . . . 24 Total Damage 441 | . . . . . 441 Kills 6 | . . . . . 6 Allies Corrupted . | . . . . . . Allies Melted . | . . . . . . Intel | -11 -10 -9 -9 -7 -6 ------- Run | Yrd Mat Mat Min Zio Pro Active Infowar (turns) 3460 | 79 498 479 208 1892 304 Sensors 1422 | . . . . 1421 1 Terrain 3460 | 79 498 479 208 1892 304 Robot Analysis Total . | . . . . . . Derelict Logs Recovered 2 | . . . 1 1 . Drone Launches . | . . . . . . Drone Recoveries . | . . . . . . Exploration | -11 -10 -9 -9 -7 -6 ------------- Run | Yrd Mat Mat Min Zio Pro Turns Passed 3897 | 389 498 606 208 1892 304 Spaces Moved 2131 | 153 325 374 129 954 196 Core 33 | 17 . 16 . . . Treads 180 | . . 180 . . . Legs 1918 | 136 325 178 129 954 196 Wheels . | . . . . . . Hover . | . . . . . . Flight . | . . . . . . Fastest Speed 50 | 50 120 100 130 130 130 Average Speed 128 | 112 120 138 130 130 130 Slowest Speed 160 | 120 120 160 130 130 130 Overloaded Moves . | . . . . . . Propulsion Burnouts . | . . . . . . Robots Hopped . | . . . . . . Potential Cave-ins 1 | . . 1 . . . Cave-ins Triggered . | . . . . . . Exploration Rate (%) 38 | 6 50 35 18 83 41 Regions Visited 5 Branch Regions 3 Pre-discovered Areas . | . . . . . . Known Exits Taken . | . . . . . . Unknown Exits Taken 5 | 1 1 1 1 1 . Scrap Searched 2 | . . . . 2 . Spaces Dug 26 | . 11 15 . . . Terrain Destroyed 338 | 2 125 211 . . . Melee . | . . . . . . Projectile . | . . . . . . AOE 338 | 2 125 211 . . . Terrain Rammed . | . . . . . . Walls Destroyed . | . . . . . . Machines Disabled . | . . . . . . Actions | -11 -10 -9 -9 -7 -6 --------- Run | Yrd Mat Mat Min Zio Pro Total 3160 | 308 395 438 169 1609 241 Wait 844 | 80 31 26 36 637 34 Move 2126 | 152 324 373 128 953 196 Hop . | . . . . . . Pick Up 38 | 13 7 6 . 7 5 Fast Attach . | . . . . . . Attach 24 | 6 3 7 3 5 . Detach 6 | . . 3 . 3 . Swap 3 | 1 2 . . . . Drop 18 | 3 4 3 1 4 3 Fire 95 | 53 22 20 . . . Melee 3 | . . . . . 3 Ram . | . . . . . . Kick 3 | . 2 . 1 . . Crush . | . . . . . . Escape Stasis . | . . . . . . Rewire . | . . . . . . Trap . | . . . . . . Miscellaneous . | . . . . . . Route ------- -11/Scrapyard -10/Materials (discovered 2 exits: *Mat / [*Min]) -9/Materials -9/Mines -7/Zion -6/Proximity Caves History --------- Turn | Location | Event 5 | -11/Scrapyard | Discovered new exit (range 15) 390 | -11/Scrapyard | Entered Materials 410 | -10/Materials | Build established: Mutant 687 | -10/Materials | Discovered new exit (range 7) 854 | -10/Materials | Repaired Grenade Launcher 867 | -10/Materials | Discovered new exit (range 13) 888 | -10/Materials | Entered another Materials area 888 | -9/Materials | Evolved 2 slots: Propulsion x1, Utility x1 1074 | -9/Materials | Repaired Grenade Launcher 1453 | -9/Materials | Discovered new exit (range 10) 1468 | -9/Materials | Core integrity fell below 50% 1494 | -9/Materials | Entered Mines 1495 | -9/Mines | A Derelict revealed a hidden shortcut to a safe place 1504 | -9/Mines | Met a Derelict bent on vengeance 1509 | -9/Mines | Learned 8 Materials zone layouts 1702 | -9/Mines | Entered Zion 1747 | -7/Zion | System corruption cleaned by Quarantine Array 1993 | -7/Zion | Learned location of 1 exit from Factory 2423 | -7/Zion | Gained Derelict followers 2709 | -7/Zion | Met Imprinter 2735 | -7/Zion | Imprinted 2737 | -7/Zion | Declared Zion's savior 3581 | -7/Zion | Discovered new exit (range 11) 3594 | -7/Zion | Entered Proximity Caves 3594 | -6/Proximity Caves | Accompanied by 3 allies 3791 | -6/Proximity Caves | Core integrity fell below 20% 3898 | -6/Proximity Caves | Destroyed by S-27 Virus with Autogun Last Messages --------------- 03613_ Dropped Corrupted Flexi-carbon Leg. 03616_ Dropped Corrupted Gauss Rifle. 03669_ N-01 Spotter destroyed. 03682_ Acquired 10 matter. 03789_ S-27 Virus knocked back. 03793_ Critical hit (Destroy). 03793_ Hvy. Hammer destroyed. 03797_ 9L-AMI(g) destroyed. 03797_ S-27 Virus destroyed. 03808_ VTOL Module fries itself beyond repair. 03810_ Acquired 23 matter. 03811_ Autogun fries itself beyond repair. 03812_ VTOL Module fries itself beyond repair. 03818_ Acquired Lgt. Nuclear Core. 03823_ Acquired Beamcaster. 03824_ Acquired 11 matter. 03828_ Acquired 22 matter. 03879_ Ion Engine destroyed. 03883_ 7R-K89(g) destroyed. 03888_ AO-I4R(M) destroyed. Map ----- +----------------------------------------------------+ | ?????????????????????????????????????????????????? | | ##????#??????????????????????????????????????????? | | # #### ??????????????????????????????????????????? | | ?#?????????????????????????????????????????? | | ????????????####??????????????????????????? | | #?###????????# ##?????????????????????????? | | #?## #??#####?# #?????????????????????????? | | #?# #?## ### #??????????????????????????? | | # ### ### ##?????????????????????????? | | ?# ## ##????????????????????????? | | ??# #????????????????????????? | | ### ### #????????????????????????? | | ##?## ###????????????????????????? | | ##?#?# ##?#????????????????????????? | | ###????# ##????????#??????????????????? | | ## ##?????## ##????????#???????????????????? | | ### ######### ######??????????????????????????? | | ??# ### #???????????#???????????????? | | ??###??# #???????????????????????????? | | ???????# #### #?????#?? ??????????????????? | | ???????# ### #??# #???????????????????????????? | | ???????#???# #??# #######?????????????????????? | | ?????? #####%!%#### ## ##???????#????????????? | | # *![= sss ##???????????????????? | | # ! ## #??????????????? | | ## ## #### #####@ #???????????????? | | ?# ??## #??###???## ##????#??????????? | | ?####?????## #??????????# ###????????????????? | | ??????????######????????#?? #??????????????????? | | ???????????#?????????????#?? #?????????????????? | | ????????????????????????????? ????????????????? | | ?????????????????????????????? #???????????????? | | ?????????????????????????????? ##???????????????? | | ??????????????????????????????? #????????????????? | | ????????????????????????????????#????????????????? | | ?????????????????????? ?????????#????????????????? | | ?????????????????????#???????????????????????????? | | ?????????????????????????????????????????????????? | | ?????????????????????????????????????????????????? | | ?????????????????????????????????????????????????? | | ?????????????????????????????????????????????????? | | ?????????????????????????????????????????????????? | | ?????????????????????????????????????????????????? | | ?????????????????????????????????????????????????? | | ?????????????????????????????????????????????????? | | ?????????????????????????????????????????????????? | | ?????????????????????????????????????????????????? | | ?????????????????????????????????????????????????? | | ?????????????????????????????????????????????????? | | ?????????????????????????????????????????????????? | +----------------------------------------------------+ Best States ------------- Heat Dissipation 28 Energy Generation 10 Energy Capacity 250 Matter Stores 300 Matter Capacity 300 Sight Range 16 Robot Scan Range 15 Terrain Scan Range 16 Terrain Scan Density 10 Evasion (%) 55 Recoil Reduction 1 Offensive Hacking 10 Item Schematics ----------------- None Robot Schematics ------------------ None Fabricated ------------ Nothing Repaired ---------- Grenade Launcher | 1% | -10/Materials Grenade Launcher | 20% | -9/Materials Alien Tech Used ----------------- None Achievements -------------- Robot Respite The More The Merrier The One Challenges ------------ None Game ------ Seed ScrapMinesnifferArticulator Manual? 0 Play Time 00:30:41 Cumulative 12.0 hours Start 2025.05.18 @ 23:46:53 End 2025.05.19 @ 00:16:36 Sessions 1 Manual Loads 0 Difficulty Rogue Special Mode None Game No. 20 Rogue 20 Adventurer 0 Explorer 0 Win Type - Total 0 Types 0/0/0/0/0/0/0/0/0/0 Lore% 7 Gallery% 12 Achievement% 14 Wizard Run 0 Options --------- Layout 1 ASCII 0 Keyboard 1 Movement Numpad Keybinds 0 Fullscreen 2 Font 24/Smallcaps Map View 50x35 Zoom Use 4% Tactical HUD 1 Map Filters NONE Filters NONE Steam 1 RUN: ecee6543-c945-40fb-ae2e-16287053549a